bitfinex-derivatives/quotes_BTCF0:USTF0_20241020
["timestamp","ask_amount","ask_price","bid_price","bid_amount"]
[1729400159226,0.073235,68276.0,68275.0,0.76813813]
[1729400163133,0.073235,68276.0,68275.0,0.79913042]
[1729400163826,0.073235,68276.0,68275.0,0.43833042]
[1729400165434,0.073235,68276.0,68275.0,0.21991119]
[1729400169040,0.073235,68276.0,68270.0,0.0438952]
[1729400169041,0.07324,68272.0,68270.0,0.0438952]
[1729400169231,0.073241,68271.0,68270.0,0.0438952]
[1729400169544,0.07324,68272.0,68271.0,0.22055631]
[1729400169730,0.07324,68272.0,68270.0,0.24675213]
[1729400169731,0.073241,68271.0,68270.0,0.24675213]
[1729400169935,0.073241,68271.0,68270.0,0.02619582]
[1729400170132,0.073241,68271.0,68270.0,0.21920154]
[1729400173643,0.073235,68276.0,68270.0,0.54030997]
[1729400173843,0.073236,68275.0,68272.0,0.3608]
[1729400174045,0.073237,68274.0,68273.0,0.21871955]
[1729400175840,0.073235,68276.0,68273.0,0.2180099]
[1729400176138,0.073236,68275.0,68274.0,0.2180099]
[1729400176342,0.073236,68275.0,68274.0,0.21801004]
[1729400180544,0.073241,68271.0,68270.0,0.3608]
[1729400180947,0.073241,68271.0,68270.0,0.5801208]
[1729400187943,0.073241,68271.0,68270.0,0.2193208]
[1729400188541,0.073241,68271.0,68270.0,0.43753799]
[1729400189847,0.073241,68271.0,68270.0,0.2193208]
[1729400190155,0.073241,68271.0,68270.0,0.43755898]
[1729400190846,0.073241,68271.0,68270.0,0.43751794]
[1729400191943,0.073241,68271.0,68270.0,0.09954423]
[1729400192353,0.073241,68271.0,68270.0,0.18732746]
[1729400193350,0.434041,68271.0,68270.0,0.09954423]
[1729400193853,0.434041,68271.0,68270.0,0.07317187]
[1729400194048,0.073242,68270.0,68269.0,0.07317187]
[1729400194452,0.073243,68269.0,68268.0,0.07317187]
[1729400194653,0.073243,68269.0,68268.0,0.17302324]
[1729400194845,0.073243,68269.0,68268.0,0.09985137]
[1729400195240,0.073243,68269.0,68268.0,0.17299188]
[1729400195646,0.073243,68269.0,68264.0,0.04388434]
[1729400195647,0.073247,68265.0,68264.0,0.04388434]
[1729400196045,0.073247,68265.0,68264.0,0.26349509]
[1729400196249,0.073247,68265.0,68264.0,0.21961075]
[1729400196445,0.073248,68264.0,68263.0,0.04388434]
[1729400196947,0.073248,68264.0,68263.0,0.26396331]
[1729400198649,0.073248,68264.0,68263.0,0.22007897]
[1729400198953,0.0315,68268.0,68262.0,0.04388434]
[1729400199252,0.073249,68263.0,68262.0,0.04388434]
[1729400199756,0.073249,68263.0,68262.0,0.26288668]
[1729400201252,0.073249,68263.0,68262.0,0.21900234]
[1729400201449,0.073249,68263.0,68262.0,0.26288668]
[1729400201650,0.073249,68263.0,68262.0,0.04388434]
[1729400201852,0.0315,68268.0,68262.0,0.21939678]
[1729400202252,0.0315,68268.0,68261.0,0.04388434]
[1729400202458,0.07325,68262.0,68261.0,0.04388434]
[1729400202662,0.0315,68268.0,68263.0,0.21851897]
[1729400202856,0.0315,68268.0,68264.0,0.21865701]
[1729400203163,0.0315,68268.0,68265.0,0.21862507]
[1729400203349,0.073245,68267.0,68266.0,0.21862507]
[1729400205357,0.073245,68267.0,68266.0,0.21786427]
[1729400215080,0.0315,68268.0,68266.0,0.21793025]
[1729400215280,0.104744,68268.0,68267.0,0.21793156]
[1729400216983,0.073244,68268.0,68267.0,0.21793156]
[1729400217688,0.073244,68268.0,68261.0,0.46458129]
[1729400217689,0.073247,68265.0,68264.0,0.05850738]
[1729400218286,0.38770025,68272.0,68262.0,0.36208]
[1729400218582,0.073249,68263.0,68262.0,0.3608]
[1729400218987,0.073249,68263.0,68262.0,0.580146]
[1729400220282,0.073249,68263.0,68262.0,0.219346]
[1729400220586,0.02690025,68272.0,68261.0,0.29370446]
[1729400220878,0.07325,68262.0,68261.0,0.07313423]
[1729400221083,0.07325,68262.0,68261.0,0.17269541]
[1729400221272,0.07325,68262.0,68261.0,0.68093141]
[1729400223487,0.07325,68262.0,68261.0,0.32013141]
[1729400223685,0.07325,68262.0,68261.0,0.68093141]
[1729400224088,0.07325,68262.0,68261.0,0.32013141]
[1729400224478,0.07325,68262.0,68261.0,0.68093141]
[1729400225784,0.3608,68272.0,68261.0,0.93740376]
[1729400225988,0.3608,68272.0,68266.0,0.1024948]
[1729400226190,0.3608,68272.0,68267.0,0.21824086]
[1729400226486,0.3608,68272.0,68268.0,0.21824086]
[1729400226689,0.3608,68272.0,68269.0,0.21824086]
[1729400226886,0.3608,68272.0,68270.0,0.21824086]
[1729400227085,0.3608,68272.0,68271.0,0.21824086]
[1729400227086,0.07324,68272.0,68271.0,0.21824086]
[1729400227389,0.43404,68272.0,68271.0,0.21824086]
[1729400228189,0.07324,68272.0,68271.0,0.21709481]
[1729400228384,0.43404,68272.0,68271.0,0.21709481]
[1729400231285,0.07324,68272.0,68271.0,0.21709481]
[1729400231484,0.43404,68272.0,68271.0,0.21709481]
[1729400231880,0.07324,68272.0,68271.0,0.21709481]
[1729400232076,0.43404,68272.0,68271.0,0.21709481]
[1729400232585,0.073239,68273.0,68264.0,0.07042456]
[1729400232884,0.073247,68265.0,68264.0,0.04392805]
[1729400240596,0.3608,68272.0,68264.0,0.3541763]
[1729400240789,0.3608,68272.0,68266.0,0.1025024]
[1729400240989,0.3608,68272.0,68267.0,0.21710454]
[1729400241186,0.3608,68272.0,68268.0,0.21710454]
[1729400241391,0.3608,68272.0,68269.0,0.21710454]
[1729400241697,0.3608,68272.0,68270.0,0.21710454]
[1729400241698,0.073241,68271.0,68270.0,0.21710454]
[1729400242799,0.073241,68271.0,68270.0,0.21710557]
[1729400252703,0.073241,68271.0,68270.0,0.21714811]
[1729400255810,0.073243,68269.0,68268.0,0.05857255]
[1729400262809,0.073243,68269.0,68268.0,0.21705248]
[1729400270814,0.073243,68269.0,68262.0,0.50598258]
[1729400270815,0.073244,68268.0,68267.0,0.05857259]
[1729400271115,0.073244,68268.0,68267.0,0.27812222]
[1729400271513,0.073244,68268.0,68267.0,0.05857259]
[1729400271918,0.073244,68268.0,68267.0,0.27716593]
[1729400274320,0.073244,68268.0,68267.0,0.21859334]
[1729400274821,0.073248,68264.0,68263.0,0.21923916]
[1729400275120,0.073249,68263.0,68262.0,0.4620614]
[1729400275424,0.073249,68263.0,68262.0,0.77909017]
[1729400276917,0.073249,68263.0,68262.0,0.77909093]
[1729400277523,0.073249,68263.0,68262.0,0.31923971]
[1729400277718,0.073249,68263.0,68262.0,0.53628092]
[1729400277921,0.073249,68263.0,68262.0,0.46306518]
[1729400284116,0.3608,68272.0,68262.0,0.71705448]
[1729400284321,0.3608,68272.0,68266.0,0.10250685]
[1729400284519,0.073244,68268.0,68267.0,0.21704121]
[1729400284727,0.073244,68268.0,68267.0,0.4370885]
[1729400285811,0.073244,68268.0,68267.0,0.22004729]
[1729400286212,0.3608,68272.0,68265.0,0.21967579]
[1729400286429,0.073247,68265.0,68264.0,0.07321942]
[1729400286614,0.073247,68265.0,68263.0,0.07321942]
[1729400286820,0.073246,68266.0,68264.0,0.22096677]
[1729400287016,0.073247,68265.0,68264.0,0.07321942]
[1729400287319,0.073247,68265.0,68264.0,0.29418619]
[1729400287712,0.073247,68265.0,68264.0,0.22096677]
[1729400288025,0.0327,68267.0,68263.0,0.2943448]
[1729400288225,0.073248,68264.0,68263.0,0.2943448]
[1729400288425,0.073248,68264.0,68263.0,0.1717811]
[1729400288721,0.073248,68264.0,68263.0,0.39270927]
[1729400289922,0.073248,68264.0,68263.0,0.39270644]
[1729400293123,0.073248,68264.0,68263.0,0.57327399]
[1729400296426,0.073248,68264.0,68263.0,0.5734225]
[1729400299621,0.073248,68264.0,68263.0,0.57343363]
[1729400300920,0.073248,68264.0,68263.0,0.67593773]
[1729400303029,0.073248,68264.0,68263.0,0.43700851]
[1729400308142,0.073248,68264.0,68263.0,0.22092817]
[1729400316037,0.073248,68264.0,68263.0,0.31954882]
[1729400321946,0.073248,68264.0,68263.0,0.43710525]
[1729400322945,0.073248,68264.0,68263.0,0.22092817]
[1729400330959,0.073248,68264.0,68263.0,0.43718435]
[1729400331663,0.073248,68264.0,68263.0,0.51043335]
[1729400333871,0.073248,68264.0,68263.0,0.51045053]
[1729400335265,0.073248,68264.0,68263.0,0.43720153]
[1729400338679,0.073248,68264.0,68263.0,0.43718273]
[1729400346180,0.073248,68264.0,68263.0,0.22092817]
[1729400353089,0.073248,68264.0,68263.0,0.43718115]
[1729400361189,0.073248,68264.0,68263.0,0.22092817]
[1729400368301,0.073248,68264.0,68263.0,0.43734322]
[1729400376206,0.073248,68264.0,68263.0,0.26486008]
[1729400376514,0.073248,68264.0,68263.0,0.22092817]
[1729400376812,0.073246,68267.0,68266.0,0.073245]
[1729400377201,0.073246,68267.0,68266.0,0.29219396]
[1729400383102,0.073246,68267.0,68266.0,0.50845893]
[1729400385416,0.073246,68267.0,68266.0,0.43521393]
[1729400386122,0.073246,68267.0,68266.0,0.43516708]
[1729400390424,0.073246,68267.0,68266.0,0.43974808]
[1729400391014,0.073246,68267.0,68266.0,0.43991638]
[1729400392423,0.073246,68267.0,68266.0,0.43533538]
[1729400393421,0.0302,68275.0,68266.0,0.31766712]
[1729400393620,0.073239,68273.0,68272.0,0.3608]
[1729400393826,0.073239,68273.0,68272.0,0.45951816]
[1729400394025,0.073239,68273.0,68272.0,0.76597183]
[1729400395828,0.073239,68273.0,68272.0,0.76558882]
[1729400396431,0.073239,68273.0,68272.0,0.67779949]
[1729400396926,0.073239,68273.0,68272.0,0.79499411]
[1729400397424,0.073239,68273.0,68272.0,0.82198407]
[1729400397616,0.073239,68273.0,68272.0,0.8219652]
[1729400398335,0.073239,68273.0,68272.0,0.6064543]
[1729400404723,0.073239,68273.0,68272.0,0.57946434]
[1729400406426,0.073239,68273.0,68272.0,0.21866434]
[1729400407726,0.073239,68273.0,68272.0,0.29179092]
[1729400407926,0.073239,68273.0,68272.0,0.21866434]
[1729400408126,0.07324,68272.0,68271.0,0.07312658]
[1729400408328,0.07324,68272.0,68271.0,0.17153097]
[1729400408537,0.07324,68272.0,68271.0,0.39057784]
[1729400409131,0.07324,68272.0,68271.0,0.31745126]
[1729400409334,0.07324,68272.0,68271.0,0.39059477]
[1729400409532,0.07324,68272.0,68271.0,0.31745126]
[1729400409836,0.07324,68272.0,68271.0,0.39059639]
[1729400410540,0.07324,68272.0,68271.0,0.31745126]
[1729400413241,0.07324,68272.0,68271.0,0.21904687]
[1729400413540,0.0315,68274.0,68270.0,0.22031291]
[1729400413744,0.073241,68271.0,68270.0,0.22031291]
[1729400413930,0.073242,68270.0,68269.0,0.47717492]
[1729400414132,0.073242,68270.0,68269.0,0.47581492]
[1729400414441,0.073242,68270.0,68269.0,0.69475525]
[1729400416839,0.073242,68270.0,68269.0,0.7386466]
[1729400418036,0.073242,68270.0,68269.0,0.69475525]
[1729400420346,0.073242,68270.0,68269.0,0.91056528]
[1729400423447,0.073242,68270.0,68269.0,0.9106247]
[1729400424043,0.073242,68270.0,68269.0,0.9838677]
[1729400424247,0.073242,68270.0,68269.0,0.8948277]
[1729400424551,0.073242,68270.0,68269.0,0.9838677]
[1729400428250,0.073242,68270.0,68269.0,0.76799825]
[1729400430539,0.0315,68274.0,68273.0,0.073239]
[1729400430540,0.104738,68274.0,68273.0,0.073239]
[1729400430855,0.073238,68274.0,68273.0,0.29265612]
[1729400435351,0.073238,68274.0,68273.0,0.50808954]
[1729400442759,0.073238,68274.0,68273.0,0.40980125]
[1729400442958,0.073238,68274.0,68273.0,0.50808052]
[1729400443367,0.073238,68274.0,68273.0,0.29265612]
[1729400445163,0.00219723,68284.0,68273.0,0.21941712]
[1729400445468,0.07323,68281.0,68279.0,0.073232]
[1729400445763,0.07323,68281.0,68280.0,0.21983834]
[1729400450361,0.07323,68281.0,68280.0,0.31791969]
[1729400450966,0.07323,68281.0,68280.0,0.34468165]
[1729400452376,0.07323,68281.0,68280.0,0.34467822]
[1729400459074,0.07323,68281.0,68280.0,0.43241034]
[1729400459270,0.07323,68281.0,68280.0,0.34467822]
[1729400459768,0.07323,68281.0,68280.0,0.43241417]
[1729400460169,0.07323,68281.0,68280.0,0.34467822]
[1729400460680,0.07323,68281.0,68280.0,0.4324171]
[1729400461076,0.07323,68281.0,68280.0,0.34468909]
[1729400465579,0.07323,68281.0,68280.0,0.2466003]
[1729400473584,0.07323,68281.0,68280.0,0.46165956]
[1729400476791,0.07323,68281.0,68280.0,0.46156234]
[1729400479983,0.07323,68281.0,68280.0,0.46151959]
[1729400488490,0.07323,68281.0,68280.0,0.2466003]
[1729400495591,0.07323,68281.0,68280.0,0.46160814]
[1729400498192,0.07323,68281.0,68280.0,0.34468953]
[1729400499501,0.07323,68281.0,68280.0,0.34469756]
[1729400499802,0.07323,68281.0,68280.0,0.46162424]
[1729400500400,0.07323,68281.0,68280.0,0.34469756]
[1729400500791,0.07323,68281.0,68280.0,0.46162499]
[1729400501202,0.07323,68281.0,68280.0,0.46162465]
[1729400503700,0.07323,68281.0,68280.0,0.2466003]
[1729400505899,0.11203518,68281.0,68280.0,0.2466003]
[1729400509304,0.11203697,68281.0,68280.0,0.2466003]
[1729400510706,0.07323,68281.0,68280.0,0.34467451]
[1729400518810,0.11198953,68281.0,68280.0,0.2466003]
[1729400525710,0.11198953,68281.0,68280.0,0.46163185]
[1729400525711,0.07323,68281.0,68280.0,0.46163185]
[1729400527207,0.07323,68281.0,68280.0,0.46160719]
[1729400530609,0.07323,68281.0,68280.0,0.82240719]
[1729400532019,0.07323,68281.0,68280.0,0.92055027]
[1729400532319,0.07323,68281.0,68280.0,0.82246147]
[1729400533715,0.07323,68281.0,68280.0,0.70551386]
[1729400537019,0.07323,68281.0,68280.0,0.70550987]
[1729400537914,0.07323,68281.0,68280.0,0.79331761]
[1729400539219,0.07323,68281.0,68280.0,0.70550987]
[1729400540922,0.11196363,68281.0,68280.0,0.6074003]
[1729400544619,0.11175144,68281.0,68280.0,0.6074003]
[1729400544824,0.07323,68281.0,68280.0,0.6074003]
[1729400545219,0.11171318,68281.0,68280.0,0.6074003]
[1729400546728,0.11170101,68281.0,68280.0,0.6074003]
[1729400548726,0.07323,68281.0,68280.0,0.70576687]
[1729400549133,0.07323,68281.0,68280.0,0.77899787]
[1729400551631,0.07323,68281.0,68280.0,0.86680561]
[1729400552217,0.07323,68281.0,68280.0,0.77899787]
[1729400552722,0.07323,68281.0,68280.0,0.86680561]
[1729400552924,0.07323,68281.0,68280.0,0.87138546]
[1729400555531,0.073225,68286.0,68280.0,0.71034672]
[1729400555727,0.073225,68286.0,68281.0,0.00457985]
[1729400555939,0.073225,68286.0,68282.0,0.00457973]
[1729400556134,0.073225,68286.0,68282.0,0.21989912]
[1729400556334,0.073225,68286.0,68285.0,0.073226]
[1729400556736,0.073225,68286.0,68285.0,0.29315658]
[1729400562038,0.073225,68286.0,68285.0,0.65395658]
[1729400563732,0.0314,68292.0,68285.0,0.58073058]
[1729400564037,0.00219698,68295.0,68291.0,0.43396067]
[1729400564237,0.00219698,68295.0,68294.0,0.073216]
[1729400564441,0.00219698,68295.0,68294.0,0.17225576]
[1729400564639,0.00219698,68295.0,68294.0,0.39589754]
[1729400565141,0.00219698,68295.0,68294.0,0.39589748]
[1729400568141,0.00219698,68295.0,68294.0,0.46883459]
[1729400568532,0.00219698,68295.0,68294.0,0.49561446]
[1729400568941,0.00219698,68295.0,68294.0,0.49103562]
[1729400569138,0.00219698,68295.0,68294.0,0.39657451]
[1729400570038,0.00219698,68295.0,68294.0,0.3236374]
[1729400570437,0.0304,68302.0,68301.0,0.073209]
[1729400570835,0.0309,68311.0,68301.0,0.27686402]
[1729400571036,0.105599,68310.0,68306.0,0.073203]
[1729400571245,0.434,68309.0,68306.0,0.073203]
[1729400571543,0.434,68309.0,68307.0,0.22011388]
[1729400572547,0.073201,68308.0,68307.0,0.22011388]
[1729400572846,0.073201,68308.0,68307.0,0.58091388]
[1729400590554,0.073201,68308.0,68307.0,0.3608]
[1729400591058,0.073204,68305.0,68304.0,0.02591112]
[1729400591255,0.073205,68304.0,68303.0,0.08896]
[1729400591556,0.073205,68304.0,68303.0,0.30748844]
[1729400592256,0.073205,68304.0,68303.0,0.26226494]
[1729400592759,0.0324,68307.0,68302.0,0.4045365]
[1729400592760,0.073206,68303.0,68302.0,0.4045365]
[1729400592948,0.073206,68303.0,68302.0,0.3608]
[1729400593655,0.07321,68300.0,68299.0,0.08896]
[1729400593859,0.07321,68300.0,68298.0,0.08896]
[1729400594065,0.0319,68299.0,68298.0,0.08896]
[1729400594259,0.0319,68299.0,68298.0,0.30966532]
[1729400594447,0.105111,68299.0,68298.0,0.22070532]
[1729400594649,0.14182258,68299.0,68298.0,0.22070532]
[1729400597365,0.14168441,68299.0,68298.0,0.22070532]
[1729400597956,0.14168012,68299.0,68298.0,0.22070532]
[1729400601073,0.105111,68299.0,68298.0,0.22070532]
[1729400603385,0.0319,68299.0,68298.0,0.29391732]
[1729400608483,0.105111,68299.0,68298.0,0.29391732]
[1729400615694,0.3608,68308.0,68301.0,0.073208]
[1729400615695,0.073205,68305.0,68301.0,0.073208]
[1729400615892,0.073205,68305.0,68302.0,0.073207]
[1729400616188,0.073205,68305.0,68304.0,0.05837886]
[1729400616590,0.073205,68305.0,68304.0,0.27727834]
[1729400617287,0.073199,68310.0,68304.0,0.65290448]
[1729400617488,0.073199,68310.0,68307.0,0.05841315]
[1729400617690,0.073199,68310.0,68308.0,0.05841315]
[1729400617886,0.073199,68310.0,68309.0,0.05841315]
[1729400618196,0.073199,68310.0,68309.0,0.27820721]
[1729400619394,0.073199,68310.0,68309.0,0.21979406]
[1729400619795,0.031,68312.0,68308.0,0.05841315]
[1729400619796,0.0732,68309.0,68308.0,0.05841315]
[1729400620204,0.0732,68309.0,68308.0,0.27870715]
[1729400623092,0.0732,68309.0,68308.0,0.24648917]
[1729400631206,0.11813523,68309.0,68308.0,0.24648917]
[1729400631397,0.15410827,68309.0,68308.0,0.24648917]
[1729400636913,0.15410827,68309.0,68308.0,0.220294]
[1729400638195,0.0732,68309.0,68308.0,0.220294]
[1729400641309,0.0732,68309.0,68308.0,0.27870715]
[1729400642307,0.0732,68309.0,68307.0,0.05841315]
[1729400642511,0.0732,68309.0,68306.0,0.05841315]
[1729400642810,0.0732,68309.0,68308.0,0.04382236]
[1729400645301,0.0732,68309.0,68306.0,0.05841315]
[1729400646111,0.073207,68302.0,68301.0,0.3608]
[1729400646416,0.073207,68302.0,68301.0,0.22092268]
[1729400646708,0.073207,68302.0,68301.0,0.58172268]
[1729400653215,0.073207,68302.0,68301.0,0.68236918]
[1729400655216,0.073207,68302.0,68301.0,0.77003217]
[1729400656220,0.073207,68302.0,68301.0,0.68236918]
[1729400657412,0.073207,68302.0,68301.0,0.682438]
[1729400659123,0.073207,68302.0,68301.0,0.77009932]
[1729400659522,0.073207,68302.0,68301.0,0.46151532]
[1729400668329,0.073207,68302.0,68301.0,0.3608]
[1729400676038,0.073207,68302.0,68297.0,0.04384097]
[1729400676229,0.073207,68302.0,68298.0,0.18935828]
[1729400676426,0.07321,68300.0,68299.0,0.10169696]
[1729400676626,0.07321,68300.0,68299.0,0.1748079]
[1729400677336,0.073211,68299.0,68298.0,0.07311094]
[1729400677535,0.073211,68299.0,68298.0,0.17498697]
[1729400677841,0.073211,68299.0,68298.0,0.1749716]
[1729400678235,0.03,68303.0,68297.0,0.07309557]
[1729400678452,0.073207,68302.0,68301.0,0.0584676]
[1729400678733,0.63,68303.0,68299.0,0.0584676]
[1729400678933,0.63,68303.0,68302.0,0.04385347]
[1729400678934,0.103206,68303.0,68302.0,0.04385347]
[1729400679135,1.06924,68303.0,68301.0,0.04385347]
[1729400679337,0.073207,68302.0,68301.0,0.04385347]
[1729400679533,0.512447,68302.0,68301.0,0.04385347]
[1729400679838,0.07321,68300.0,68299.0,0.0584676]
[1729400680039,0.073211,68299.0,68298.0,0.0584676]
[1729400680445,0.673211,68299.0,68298.0,0.0584676]
[1729400681229,0.073212,68298.0,68297.0,0.0584676]
[1729400681640,0.673212,68298.0,68297.0,0.0584676]
[1729400682526,0.073212,68298.0,68297.0,0.0584676]
[1729400682732,0.673212,68298.0,68297.0,0.0584676]
[1729400683127,0.073212,68298.0,68297.0,0.0584676]
[1729400683340,0.073211,68299.0,68292.0,0.3608]
[1729400683341,0.073217,68293.0,68292.0,0.3608]
[1729400685143,0.073211,68299.0,68289.0,0.3608]
[1729400685144,0.073221,68290.0,68289.0,0.3608]
[1729400688441,0.434011,68299.0,68289.0,0.3608]
[1729400688748,0.07322,68290.0,68289.0,0.3608]
[1729400691247,0.07322,68290.0,68289.0,0.46269049]
[1729400692740,0.07322,68290.0,68289.0,0.46268621]
[1729400695437,0.07322,68290.0,68289.0,0.10188621]
[1729400695641,0.07322,68290.0,68289.0,0.46268621]
[1729400695841,0.07322,68290.0,68289.0,0.10188621]
[1729400696038,0.07322,68290.0,68289.0,0.46268621]
[1729400696943,0.07322,68290.0,68289.0,0.46269858]
[1729400697144,0.07322,68290.0,68289.0,0.10189858]
[1729400697451,0.07322,68290.0,68289.0,0.46269858]
[1729400697648,0.07322,68290.0,68289.0,0.10189858]
[1729400697848,0.07322,68290.0,68289.0,0.46269858]
[1729400698350,0.07322,68290.0,68289.0,0.3608]
[1729400700344,0.434011,68299.0,68285.0,0.104226]
[1729400700345,0.073211,68299.0,68285.0,0.104226]
[1729400700651,0.073222,68288.0,68287.0,0.36299647]
[1729400701046,0.073222,68288.0,68287.0,0.58317133]
[1729400706254,0.073222,68288.0,68287.0,0.6852504]
[1729400706255,0.02193247,68288.0,68287.0,0.6852504]
[1729400706457,0.02579228,68292.0,68287.0,0.80692474]
[1729400706657,0.032,68294.0,68288.0,0.22375341]
[1729400706860,0.105216,68294.0,68293.0,0.08777987]
[1729400707161,0.105216,68294.0,68293.0,0.18985894]
[1729400708359,0.105216,68294.0,68293.0,0.10207907]
[1729400709149,0.13186028,68294.0,68293.0,0.10207907]
[1729400713256,0.13186028,68294.0,68289.0,0.3608]
[1729400713257,0.05864428,68294.0,68292.0,0.07317237]
[1729400713457,0.073217,68293.0,68292.0,0.07317237]
[1729400713763,0.073217,68293.0,68292.0,0.17548425]
[1729400721374,0.03585916,68293.0,68289.0,0.3608]
[1729400721574,0.07322,68290.0,68289.0,0.3608]
[1729400721878,0.10907916,68290.0,68289.0,0.3608]
[1729400725376,0.07322,68290.0,68289.0,0.3608]
[1729400727580,0.3608,68299.0,68289.0,0.57998788]
[1729400727782,0.073216,68294.0,68290.0,0.0314]
[1729400727981,0.03585814,68293.0,68292.0,0.073218]
[1729400728177,0.073214,68296.0,68293.0,0.073216]
[1729400728377,0.03585765,68295.0,68293.0,0.2915242]
[1729400728680,0.073214,68296.0,68294.0,0.22513599]
[1729400728875,0.073214,68296.0,68295.0,0.22513599]
[1729400729283,0.073214,68296.0,68295.0,0.44517498]
[1729400730189,0.073214,68296.0,68295.0,0.32274881]
[1729400731487,0.073214,68296.0,68295.0,0.32272755]
[1729400731888,0.073214,68296.0,68295.0,0.4451527]
[1729400734282,0.073214,68296.0,68295.0,0.32272755]
[1729400734595,0.073214,68296.0,68295.0,0.44524372]
[1729400735292,0.073214,68296.0,68295.0,0.32272755]
[1729400735483,0.073214,68296.0,68295.0,0.44522918]
[1729400736185,0.073214,68296.0,68295.0,0.47159241]
[1729400736386,0.073214,68296.0,68295.0,0.47158155]
[1729400736588,0.073214,68296.0,68295.0,0.24640222]
[1729400740386,0.073214,68296.0,68295.0,0.60720222]
[1729400743491,0.073214,68296.0,68295.0,0.78356969]
[1729400744097,0.073214,68296.0,68295.0,0.42276969]
[1729400744399,0.073214,68296.0,68295.0,0.78356969]
[1729400745690,0.073214,68296.0,68295.0,0.71047634]
[1729400745908,0.073214,68296.0,68295.0,0.34967634]
[1729400746200,0.073214,68296.0,68295.0,0.78355421]
[1729400747590,0.073214,68296.0,68295.0,0.71047634]
[1729400750903,0.073214,68296.0,68295.0,0.34967634]
[1729400751102,0.073214,68296.0,68295.0,0.71047634]
[1729400752906,0.073214,68296.0,68295.0,0.34967634]
[1729400753111,0.073214,68296.0,68295.0,0.71047634]
[1729400755109,0.073214,68296.0,68295.0,0.34967634]
[1729400756105,0.073214,68296.0,68295.0,0.35085881]
[1729400758206,0.073214,68296.0,68295.0,0.71165881]
[1729400758512,0.073214,68296.0,68295.0,0.60720222]
[1729400759109,0.073214,68296.0,68295.0,0.24640222]
[1729400759303,0.073214,68296.0,68295.0,0.60720222]
[1729400760808,0.073214,68296.0,68295.0,0.24640222]
[1729400761008,0.073214,68296.0,68295.0,0.60720222]
[1729400762808,0.073214,68296.0,68295.0,0.24640222]
[1729400763015,0.073214,68296.0,68295.0,0.60720222]
[1729400764313,0.073214,68296.0,68295.0,0.24640222]
[1729400764514,0.073214,68296.0,68295.0,0.60720222]
[1729400765017,0.073214,68296.0,68295.0,0.24640222]
[1729400765315,0.073214,68296.0,68295.0,0.60720222]
[1729400766214,0.073214,68296.0,68295.0,0.24640222]
[1729400766417,0.073214,68296.0,68295.0,0.60720222]
[1729400766713,0.073214,68296.0,68295.0,0.71228945]
[1729400767316,0.073214,68296.0,68295.0,0.80000147]
[1729400767501,0.073214,68296.0,68295.0,0.43920147]
[1729400767704,0.073214,68296.0,68295.0,0.80000147]
[1729400768809,0.073214,68296.0,68295.0,0.35148945]
[1729400769013,0.073214,68296.0,68295.0,0.71228945]
[1729400769203,0.073214,68296.0,68295.0,0.71276569]
[1729400770012,0.073214,68296.0,68295.0,0.35196569]
[1729400770210,0.073214,68296.0,68295.0,0.71276569]
[1729400770920,0.073214,68296.0,68295.0,0.35196569]
[1729400771418,0.073214,68296.0,68295.0,0.71276569]
[1729400772322,0.073214,68296.0,68295.0,0.35196569]
[1729400772621,0.073214,68296.0,68295.0,0.71276569]
[1729400773521,0.073214,68296.0,68295.0,0.60720222]
[1729400774924,0.073214,68296.0,68295.0,0.24640222]
[1729400775825,0.073214,68296.0,68295.0,0.60720222]
[1729400776025,0.073214,68296.0,68295.0,0.24640222]
[1729400776821,0.073214,68296.0,68295.0,0.60720222]
[1729400777020,0.073214,68296.0,68295.0,0.24640222]
[1729400777221,0.073214,68296.0,68295.0,0.60720222]
[1729400777522,0.073214,68296.0,68295.0,0.24640222]
[1729400777925,0.073214,68296.0,68295.0,0.60720222]
[1729400778420,0.073214,68296.0,68295.0,0.24640222]
[1729400778623,0.073214,68296.0,68295.0,0.60720222]
[1729400780116,0.073214,68296.0,68295.0,0.24640222]
[1729400780516,0.073214,68296.0,68295.0,0.60720222]
[1729400780812,0.073214,68296.0,68295.0,0.24640222]
[1729400781017,0.073214,68296.0,68295.0,0.60720222]
[1729400781728,0.073214,68296.0,68295.0,0.71279054]
[1729400783920,0.073214,68296.0,68295.0,0.35262825]
[1729400784119,0.073214,68296.0,68295.0,0.71342825]
[1729400784919,0.073214,68296.0,68295.0,0.35262825]
[1729400785226,0.073214,68296.0,68295.0,0.71342825]
[1729400788118,0.073214,68296.0,68295.0,0.35262825]
[1729400788314,0.073214,68296.0,68295.0,0.71342825]
[1729400788725,0.073214,68296.0,68295.0,0.60720222]
[1729400789117,0.073214,68296.0,68295.0,0.24640222]
[1729400789317,0.073214,68296.0,68295.0,0.60720222]
[1729400790224,0.073214,68296.0,68295.0,0.24640222]
[1729400790420,0.073214,68296.0,68295.0,0.60720222]
[1729400792623,0.073214,68296.0,68295.0,0.24640222]
[1729400792818,0.073214,68296.0,68295.0,0.60720222]
[1729400795426,0.0329,68303.0,68295.0,0.60720222]
[1729400795427,0.07321,68300.0,68295.0,0.68041722]
[1729400795636,0.07321,68300.0,68296.0,0.23468297]
[1729400795822,0.07321,68300.0,68297.0,0.23468297]
[1729400796025,0.07321,68300.0,68298.0,0.23468297]
[1729400796223,0.07321,68300.0,68299.0,0.10706527]
[1729400796423,0.07321,68300.0,68299.0,0.32564438]
[1729400796623,0.07321,68300.0,68299.0,0.10706527]
[1729400797132,0.07321,68300.0,68299.0,0.32564438]
[1729400797434,0.07321,68300.0,68299.0,0.41338426]
[1729400798230,0.07321,68300.0,68299.0,0.41359612]
[1729400798639,0.07321,68300.0,68299.0,0.32585624]
[1729400798821,0.07321,68300.0,68299.0,0.41358763]
[1729400800339,0.07321,68300.0,68299.0,0.32585624]
[1729400803040,0.07321,68300.0,68299.0,0.32578684]
[1729400808739,0.03657921,68300.0,68299.0,0.32578684]
[1729400810737,0.03657921,68300.0,68299.0,0.21857911]
[1729400811155,0.03657921,68300.0,68297.0,0.21891825]
[1729400811557,0.03657921,68300.0,68296.0,0.3608]
[1729400811864,0.03657921,68300.0,68297.0,0.22097241]
[1729400818661,0.03657921,68300.0,68298.0,0.19548272]
[1729400818856,0.03657921,68300.0,68299.0,0.10775133]